fUSD/lending_fUSD_20240530
["ID","MTS","AMOUNT","RATE_DAILY","PERIOD"]
[328203324,1717056649381,-500.0,0.00029271,7]
[328203325,1717056649393,-529.71263214,0.00029271,7]
[328203326,1717056649403,-500.0,0.00029271,7]
[328203327,1717056649413,-500.0,0.00029271,7]
[328203328,1717056649423,-1470.71,0.00029271,7]
[328203329,1717056649435,-500.0,0.00029271,7]
[328203330,1717056649445,-500.0,0.00029271,7]
[328203331,1717056649454,-500.0,0.00029271,7]
[328203332,1717056649464,-500.0,0.00029271,7]
[328203333,1717056649473,-500.0,0.00029271,7]
[328203334,1717056649483,-500.0,0.00029271,7]
[328203335,1717056649492,-707.35,0.00029271,7]
[328203336,1717056649502,-500.0,0.00029271,7]
[328203337,1717056649511,-501.52434599,0.00029271,7]
[328203338,1717056649521,-500.0,0.00029271,7]
[328203339,1717056649530,-500.0,0.00029271,7]
[328203340,1717056649540,-500.0,0.00029271,7]
[328203341,1717056649551,-594.54,0.00029271,7]
[328203342,1717056649560,-500.0,0.00029271,7]
[328203343,1717056649569,-500.0,0.00029271,7]
[328203344,1717056649578,-500.0,0.00029271,7]
[328203345,1717056649588,-535.63971917,0.00029271,7]
[328203346,1717056649597,-500.0,0.00029271,7]
[328203347,1717056649606,-500.0,0.00029271,7]
[328203348,1717056649617,-1364.19,0.00029271,7]
[328203349,1717056649626,-500.0,0.00029271,7]
[328203350,1717056649635,-500.0,0.00029271,7]
[328203351,1717056649645,-500.0,0.00029271,7]
[328203352,1717056649654,-500.0,0.00029271,7]
[328203353,1717056649663,-500.0,0.00029271,7]
[328203354,1717056649673,-500.0,0.00029271,7]
[328203355,1717056649682,-500.0,0.00029271,7]
[328203356,1717056649692,-255.23115055,0.00029271,7]
[328203357,1717056649702,-500.0,0.00029271,7]
[328203358,1717056649711,-500.0,0.00029271,7]
[328203359,1717056649721,-500.0,0.00029271,7]
[328203360,1717056649730,-500.0,0.00029271,7]
[328203361,1717056649740,-500.0,0.00029271,7]
[328203362,1717056649749,-500.0,0.00029271,7]
[328203363,1717056649759,-500.0,0.00029271,7]
[328203364,1717056649768,-500.0,0.00029271,7]
[328203365,1717056649778,-500.0,0.00029271,7]
[328203366,1717056649787,-1018.24,0.00029271,7]
[328203367,1717056649796,-500.0,0.00029271,7]
[328203368,1717056649807,-538.16956746,0.00029271,7]
[328203369,1717056649817,-500.0,0.00029271,7]
[328203370,1717056649826,-526.88877428,0.00029271,7]
[328203371,1717056649835,-500.0,0.00029271,7]
[328203372,1717056649844,-500.0,0.00029271,7]
[328203373,1717056649853,-500.0,0.00029271,7]
[328203374,1717056649863,-500.0,0.00029271,7]
[328203375,1717056649872,-500.0,0.00029271,7]
[328203376,1717056649881,-500.0,0.00029271,7]
[328203377,1717056649890,-741.55,0.00029271,7]
[328203378,1717056649900,-500.0,0.00029271,7]
[328203379,1717056649909,-500.0,0.00029271,7]
[328203380,1717056649918,-500.0,0.00029271,7]
[328203381,1717056649927,-500.0,0.00029271,7]
[328203382,1717056649936,-535.26178271,0.00029271,7]
[328203383,1717056649946,-500.0,0.00029271,7]
[328203384,1717056649957,-500.0,0.00029271,7]
[328203385,1717056649967,-500.0,0.00029271,7]
[328203386,1717056649976,-500.0,0.00029271,7]
[328203387,1717056649985,-500.0,0.00029271,7]
[328203388,1717056649994,-500.0,0.00029271,7]
[328203389,1717056650004,-560.97,0.00029271,7]
[328203390,1717056650013,-500.0,0.00029271,7]
[328203391,1717056650022,-500.0,0.00029271,7]
[328203392,1717056650032,-500.0,0.00029271,7]
[328203393,1717056650040,-500.0,0.00029271,7]
[328203394,1717056650051,-500.0,0.00029271,7]
[328203395,1717056650060,-500.0,0.00029271,7]
[328203396,1717056650069,-500.0,0.00029271,7]
[328203397,1717056650078,-500.0,0.00029271,7]
[328203398,1717056650087,-500.0,0.00029271,7]
[328203399,1717056650097,-1351.51,0.00029271,7]
[328203400,1717056650106,-500.0,0.00029271,7]
[328203401,1717056650115,-5812.51,0.00029271,7]
[328203402,1717056650125,-500.0,0.00029271,7]
[328203403,1717056650134,-500.0,0.00029271,7]
[328203404,1717056650143,-500.0,0.00029271,7]
[328203405,1717056650153,-500.0,0.00029271,7]
[328203406,1717056650162,-500.0,0.00029271,7]
[328203407,1717056650171,-500.0,0.00029271,7]
[328203408,1717056650180,-601.07,0.00029271,7]
[328203409,1717056650189,-500.0,0.00029271,7]
[328203410,1717056650199,-500.0,0.00029271,7]
[328203411,1717056650209,-500.0,0.00029271,7]
[328203412,1717056650218,-500.0,0.00029271,7]
[328203413,1717056650228,-500.0,0.00029271,7]
[328203414,1717056650237,-500.0,0.00029271,7]
[328203415,1717056650247,-500.0,0.00029271,7]
[328203416,1717056650256,-500.0,0.00029271,7]
[328203417,1717056650265,-500.0,0.00029271,7]
[328203418,1717056650274,-500.0,0.00029271,7]
[328203419,1717056650284,-500.0,0.00029271,7]
[328203420,1717056650293,-527.39,0.00029271,7]
[328203421,1717056650305,-500.0,0.00029271,7]
[328203422,1717056650314,-576.91,0.00029271,7]
[328203423,1717056650323,-500.0,0.00029271,7]
[328203424,1717056650332,-561.71877655,0.00029271,7]
[328203425,1717056650342,-528.69,0.00029271,7]
[328203426,1717056650353,-500.0,0.00029271,7]
[328203427,1717056650370,-566.20442088,0.00029271,7]
[328203428,1717056650380,-500.0,0.00029271,7]
[328203429,1717056650390,-500.0,0.00029271,7]
[328203430,1717056650400,-500.0,0.00029271,7]
[328203431,1717056650409,-500.0,0.00029271,7]
[328203432,1717056650419,-500.0,0.00029271,7]
[328203433,1717056650428,-1323.8,0.00029271,7]
[328203434,1717056650440,-582.11,0.00029271,7]
[328203435,1717056650449,-500.0,0.00029271,7]
[328203436,1717056650459,-500.0,0.00029271,7]
[328203437,1717056650469,-500.0,0.00029271,7]
[328203438,1717056650478,-500.0,0.00029271,7]
[328203439,1717056650488,-500.0,0.00029271,7]
[328203440,1717056650497,-500.0,0.00029271,7]
[328203441,1717056650506,-500.0,0.00029271,7]
[328203442,1717056650515,-500.0,0.00029271,7]
[328203443,1717056650524,-500.0,0.00029271,7]
[328203444,1717056650533,-500.0,0.00029271,7]
[328203445,1717056650542,-500.0,0.00029271,7]
[328203446,1717056650554,-500.0,0.00029271,7]
[328203447,1717056650563,-500.0,0.00029271,7]
[328203448,1717056650572,-500.0,0.00029271,7]
[328203449,1717056650710,-802.93,0.00029271,7]
[328203450,1717056650720,-500.0,0.00029271,7]
[328203451,1717056650729,-500.0,0.00029271,7]
[328203452,1717056650738,-500.0,0.00029271,7]
[328203453,1717056650748,-500.0,0.00029271,7]
[328203454,1717056650756,-500.0,0.00029271,7]
[328203455,1717056650765,-523.58,0.00029271,7]
[328203456,1717056650774,-500.0,0.00029271,7]
[328203457,1717056650783,-500.0,0.00029271,7]
[328203458,1717056650792,-2380.38,0.00029271,7]
[328203459,1717056650803,-500.0,0.00029271,7]
[328203460,1717056650812,-539.97,0.00029271,7]
[328203461,1717056650821,-412.84634232,0.00029271,7]
[328203462,1717056650829,-500.0,0.00029271,7]
[328203463,1717056650839,-500.0,0.00029271,7]
[328203464,1717056650848,-500.0,0.00029271,7]
[328203465,1717056650857,-500.0,0.00029271,7]
[328203466,1717056650866,-651.85,0.00029271,7]
[328203467,1717056650875,-500.0,0.00029271,7]
[328203468,1717056650884,-500.0,0.00029271,7]
[328203469,1717056650893,-500.0,0.00029271,7]
[328203470,1717056650903,-500.0,0.00029271,7]
[328203471,1717056650912,-500.0,0.00029271,7]
[328203472,1717056650921,-500.0,0.00029271,7]
[328203473,1717056650930,-500.0,0.00029271,7]
[328203474,1717056650939,-500.0,0.00029271,7]
[328203475,1717056650948,-500.0,0.00029271,7]
[328203476,1717056650958,-500.0,0.00029271,7]
[328203477,1717056650967,-502.83,0.00029271,7]
[328203478,1717056650976,-500.0,0.00029271,7]
[328203479,1717056650985,-500.0,0.00029271,7]
[328203480,1717056650995,-1264.47,0.00029271,7]
[328203481,1717056651004,-500.0,0.00029271,7]
[328203482,1717056651013,-500.0,0.00029271,7]
[328203483,1717056651022,-266.00233697,0.00029271,7]
[328203484,1717056651078,-233.99766303,0.00029271,7]
[328203485,1717056651087,-500.0,0.00029271,7]
[328203486,1717056651096,-531.66874852,0.00029271,7]
[328203487,1717056651107,-500.0,0.00029271,7]
[328203488,1717056651116,-500.0,0.00029271,7]
[328203489,1717056651125,-500.0,0.00029271,7]
[328203490,1717056651135,-500.0,0.00029271,7]
[328203491,1717056651144,-500.0,0.00029271,7]
[328203492,1717056651154,-500.0,0.00029271,7]
[328203493,1717056651163,-500.0,0.00029271,7]
[328203494,1717056651172,-500.0,0.00029271,7]
[328203495,1717056651181,-500.0,0.00029271,7]
[328203496,1717056651190,-500.0,0.00029271,7]
[328203497,1717056651199,-500.0,0.00029271,7]
[328203498,1717056651209,-500.0,0.00029271,7]
[328203499,1717056651218,-500.0,0.00029271,7]
[328203500,1717056651227,-500.0,0.00029271,7]
[328203501,1717056651237,-500.0,0.00029271,7]
[328203502,1717056651246,-826.34,0.00029271,7]
[328203503,1717056651255,-500.0,0.00029271,7]
[328203504,1717056651264,-500.0,0.00029271,7]
[328203505,1717056651273,-417.90419795,0.00029271,7]
[328203506,1717056651282,-1232.68,0.00029271,7]
[328203507,1717056651291,-500.0,0.00029271,7]
[328203508,1717056651303,-2219.39,0.00029271,7]
[328203509,1717056651311,-500.0,0.00029271,7]
[328203510,1717056651321,-500.0,0.00029271,7]
[328203511,1717056651330,-500.0,0.00029271,7]
[328203512,1717056651339,-500.0,0.00029271,7]
[328203513,1717056651351,-500.0,0.00029271,7]
[328203514,1717056651360,-500.0,0.00029271,7]
[328203515,1717056651369,-536.48810433,0.00029271,7]
[328203516,1717056651379,-500.0,0.00029271,7]
[328203517,1717056651388,-500.0,0.00029271,7]
[328203518,1717056651398,-664.66,0.00029271,7]
[328203519,1717056651408,-518.12,0.00029271,7]
[328203520,1717056651417,-500.0,0.00029271,7]
[328203521,1717056651426,-500.0,0.00029271,7]
[328203522,1717056651436,-553.59536544,0.00029271,7]
[328203523,1717056651445,-865.5,0.00029271,7]
[328203524,1717056651454,-2613.58,0.00029271,7]
[328203525,1717056651463,-537.70476088,0.00029271,7]
[328203526,1717056651472,-500.0,0.00029271,2]
[328203527,1717056651481,-500.0,0.00029271,7]
[328203528,1717056651490,-1844.99,0.00029271,7]
[328203529,1717056651499,-500.0,0.00029271,7]
[328203530,1717056651508,-500.0,0.00029271,7]
[328203531,1717056651518,-500.0,0.00029271,7]
[328203532,1717056651527,-500.0,0.00029271,7]
[328203533,1717056651536,-500.0,0.00029271,7]
[328203534,1717056651545,-500.0,0.00029271,7]
[328203535,1717056651558,-833.7,0.00029271,7]
[328203536,1717056651567,-500.0,0.00029271,7]
[328203537,1717056651576,-604.94940535,0.00029271,7]
[328203538,1717056651586,-500.0,0.00029271,7]
[328203539,1717056651596,-500.0,0.00029271,7]
[328203540,1717056651605,-500.0,0.00029271,7]
[328203541,1717056651615,-500.0,0.00029271,7]
[328203542,1717056651624,-500.0,0.00029271,7]
[328203543,1717056651633,-500.0,0.00029271,7]
[328203544,1717056651642,-1384.47,0.00029271,7]
[328203545,1717056651652,-2013.98,0.00029271,7]
[328203546,1717056651661,-624.91,0.00029271,7]
[328203547,1717056651670,-409.22338571,0.00029375,2]
[328203548,1717056651679,-337.58,0.00029413,2]
[328203549,1717056651689,-500.0,0.00029544,7]
[328203550,1717056651699,-558.70208414,0.00029544,7]
[328203551,1717056651708,-500.0,0.00029544,7]
[328203552,1717056651717,-500.0,0.00029544,7]
[328203553,1717056651727,-500.0,0.00029544,7]
[328203554,1717056651736,-15.18919811,0.00029544,7]
[328203555,1717056652043,-484.81080189,0.00029544,7]
[328203556,1717056652055,-1897.63,0.00029544,7]
[328203557,1717056652064,-500.0,0.00029544,7]
[328203558,1717056652073,-500.0,0.00029544,7]
[328203559,1717056652083,-686.59,0.00029544,7]
[328203560,1717056652092,-568.49,0.00029544,7]
[328203561,1717056652101,-500.0,0.00029544,7]
[328203562,1717056652110,-506.36,0.00029544,7]
[328203563,1717056652119,-848.46,0.00029544,7]
[328203564,1717056652128,-500.0,0.00029544,7]
[328203565,1717056652138,-501.65,0.00029544,7]
[328203566,1717056652146,-500.0,0.00029544,7]
[328203567,1717056652155,-500.0,0.00029544,7]
[328203568,1717056652164,-500.0,0.00029544,7]
[328203569,1717056652173,-500.0,0.00029544,7]
[328203570,1717056652182,-500.0,0.00029544,7]
[328203571,1717056652191,-500.0,0.00029544,7]
[328203572,1717056652200,-544.96,0.00029544,7]
[328203573,1717056652212,-1254.64,0.00029544,7]
[328203574,1717056652221,-500.0,0.00029544,7]
[328203575,1717056652230,-696.45,0.00029544,7]
[328203576,1717056652239,-527.98948663,0.00029544,7]
[328203577,1717056652248,-500.0,0.00029544,7]
[328203578,1717056652257,-500.0,0.00029544,7]
[328203579,1717056652267,-500.0,0.00029544,7]
[328203580,1717056652276,-500.0,0.00029544,7]
[328203581,1717056652285,-500.0,0.00029544,7]
[328203582,1717056652294,-500.0,0.00029544,7]
[328203583,1717056652305,-613.28524536,0.00029544,7]
[328203584,1717056652313,-1022.9,0.00029544,7]
[328203585,1717056652322,-4090.6,0.00029544,7]
[328203586,1717056652331,-1221.29,0.00029544,7]
[328203587,1717056652340,-949.8,0.00029544,7]
[328203588,1717056652349,-500.0,0.00029544,7]
[328203589,1717056652362,-500.0,0.00029545,7]
[328203590,1717056652371,-500.0,0.00029545,7]
[328203591,1717056652380,-500.0,0.00029545,7]
[328203592,1717056652388,-500.0,0.00029545,7]
[328203593,1717056652397,-557.51085414,0.00029545,7]
[328203594,1717056652407,-500.0,0.00029545,7]
[328203595,1717056652416,-500.0,0.00029545,7]
[328203596,1717056652426,-500.0,0.00029545,7]
[328203597,1717056652437,-500.0,0.00029545,7]
[328203598,1717056652447,-500.0,0.00029545,7]
[328203599,1717056652457,-500.0,0.00029545,7]
[328203600,1717056652616,-500.0,0.00029545,7]
[328203601,1717056652627,-500.0,0.00029545,7]
[328203602,1717056652637,-500.0,0.00029545,7]
[328203603,1717056652645,-500.0,0.00029545,7]
[328203604,1717056652654,-500.0,0.00029545,7]
[328203605,1717056652663,-1388.89,0.00029545,7]
[328203606,1717056652672,-300.75626041,0.00029545,7]
[328203607,1717056652681,-500.0,0.00029545,7]
[328203608,1717056652690,-500.0,0.00029545,7]
[328203609,1717056652699,-500.0,0.00029545,7]
[328203610,1717056652708,-500.0,0.00029545,7]
[328203611,1717056652718,-1174.73,0.00029545,7]
[328203612,1717056652727,-788.6,0.00029545,7]
[328203613,1717056652736,-500.0,0.00029545,7]
[328203614,1717056652746,-249.08358636,0.00029545,7]
[328203615,1717056652755,-500.0,0.00029545,2]
[328203616,1717056652765,-500.0,0.00029545,7]
[328203617,1717056652775,-20000.0,0.00029545,2]
[328203618,1717056652784,-1073.05,0.00029545,7]
[328203619,1717056652793,-212.01285936,0.00029545,7]
[328203620,1717056652807,-500.0,0.00029545,7]
[328203621,1717056652816,-500.0,0.00029545,7]
[328203622,1717056652825,-500.0,0.00029545,7]
[328203623,1717056652835,-500.0,0.00029545,2]
[328203624,1717056652844,-807.73,0.00029545,7]
[328203625,1717056652852,-1734.2,0.00029545,7]
[328203626,1717056652861,-500.0,0.00029545,7]
[328203627,1717056652870,-479.52224509,0.00029545,2]
[328203628,1717056652880,-500.0,0.00029545,7]
[328203629,1717056652889,-500.0,0.00029545,2]
[328203630,1717056652898,-1260.95,0.00029545,7]
[328203631,1717056652907,-500.0,0.00029545,7]
[328203632,1717056652917,-500.0,0.00029545,7]
[328203633,1717056652927,-1380.33,0.00029545,7]
[328203634,1717056652936,-500.0,0.00029545,7]
[328203635,1717056652946,-641.04,0.00029545,7]
[328203636,1717056652956,-500.0,0.00029545,2]
[328203637,1717056652965,-500.0,0.00029545,2]
[328203638,1717056652975,-500.0,0.00029545,7]
[328203639,1717056652984,-837.56,0.00029545,7]
[328203640,1717056652994,-557.59449123,0.00029545,7]
[328203641,1717056653003,-500.0,0.00029545,7]
[328203642,1717056653013,-500.0,0.00029545,7]
[328203643,1717056653023,-500.0,0.00029545,7]
[328203644,1717056653033,-500.0,0.00029545,7]
[328203645,1717056653042,-500.0,0.00029545,7]
[328203646,1717056653055,-500.0,0.00029545,7]
[328203647,1717056653064,-521.37,0.00029545,7]
[328203648,1717056653073,-500.0,0.00029545,7]
[328203649,1717056653082,-500.0,0.00029545,7]
[328203650,1717056653091,-829.27,0.00029545,7]
[328203651,1717056653099,-829.7,0.00029545,7]
[328203652,1717056653109,-407.37443216,0.00029545,7]
[328203653,1717056653118,-994.67,0.00029545,7]
[328203654,1717056653127,-500.0,0.00029545,7]
[328203655,1717056653136,-500.0,0.00029545,7]
[328203656,1717056653145,-500.0,0.00029545,7]
[328203657,1717056653154,-547.80073064,0.00029545,7]
[328203658,1717056653164,-520.29091778,0.00029545,7]
[328203659,1717056653173,-500.0,0.00029545,7]
[328203660,1717056653182,-500.0,0.00029545,7]
[328203661,1717056653192,-256.56078465,0.00029545,7]
[328203662,1717056653200,-500.0,0.00029545,7]
[328203663,1717056653210,-500.0,0.00029545,7]
[328203664,1717056653220,-647.01,0.00029545,7]
[328203665,1717056653229,-500.0,0.00029545,7]
[328203666,1717056653239,-500.0,0.00029545,7]
[328203667,1717056653248,-500.0,0.00029545,7]
[328203668,1717056653258,-710.35,0.00029545,7]
[328203669,1717056653268,-500.0,0.00029545,7]
[328203670,1717056653277,-500.0,0.00029545,7]
[328203671,1717056653286,-518.75,0.00029545,7]
[328203672,1717056653295,-1829.43,0.00029545,7]
[328203673,1717056653307,-500.0,0.00029545,7]
[328203674,1717056653316,-500.0,0.00029545,7]
[328203675,1717056653326,-500.0,0.00029545,7]
[328203676,1717056653335,-500.0,0.00029545,7]
[328203677,1717056653345,-500.0,0.00029545,7]
[328203678,1717056653359,-500.0,0.00029545,7]
[328203679,1717056653369,-500.0,0.00029545,7]
[328203680,1717056653378,-500.04,0.00029545,7]
[328203681,1717056653388,-500.0,0.00029545,7]
[328203682,1717056653399,-500.0,0.00029545,7]
[328203683,1717056653408,-500.0,0.00029545,7]
[328203684,1717056653417,-500.0,0.00029545,7]
[328203685,1717056653426,-500.0,0.00029545,7]
[328203686,1717056653436,-500.0,0.00029545,7]
[328203687,1717056653448,-532.19,0.00029545,7]
[328203688,1717056653457,-500.0,0.00029545,7]
[328203689,1717056653467,-500.0,0.00029545,7]
[328203690,1717056653476,-500.0,0.00029545,7]
[328203691,1717056653485,-500.0,0.00029545,7]
[328203692,1717056653494,-500.0,0.00029545,7]
[328203693,1717056653503,-699.93,0.00029545,7]
[328203694,1717056653513,-500.0,0.00029545,7]
[328203695,1717056653523,-500.0,0.00029545,7]
[328203696,1717056653533,-500.0,0.00029545,7]
[328203697,1717056653543,-500.0,0.00029545,7]
[328203698,1717056653555,-500.0,0.00029545,7]
[328203699,1717056653564,-684.73,0.00029545,7]
[328203700,1717056653572,-500.0,0.00029545,7]
[328203701,1717056653581,-500.0,0.00029545,7]
[328203702,1717056653590,-676.36,0.00029545,7]
[328203703,1717056653599,-500.0,0.00029545,7]
[328203704,1717056653608,-500.0,0.00029545,7]
[328203705,1717056653619,-825.66,0.00029545,7]
[328203706,1717056653628,-500.0,0.00029545,7]
[328203707,1717056653637,-500.0,0.00029545,7]
[328203708,1717056653648,-542.14093986,0.00029545,7]
[328203709,1717056653657,-743.3,0.00029545,7]
[328203710,1717056653667,-225.91983136,0.00029545,7]
[328203711,1717056653676,-805.62,0.00029545,7]
[328203712,1717056653686,-500.0,0.00029545,7]
[328203713,1717056653695,-436.25737428,0.00029545,7]
[328203714,1717056653705,-543.85890545,0.00029545,7]
[328203715,1717056653714,-500.0,0.00029545,7]
[328203716,1717056653723,-516.79995721,0.00029545,7]
[328203717,1717056653732,-500.0,0.00029545,7]
[328203718,1717056653741,-500.0,0.00029545,7]
[328203719,1717056653751,-560.3820832,0.00029545,7]
[328203720,1717056653768,-27.84998968,0.00029545,7]
[328203721,1717056653777,-268.19,0.00029545,7]
[328203722,1717056653787,-20.39412037,0.00029545,7]
[328203723,1717056653805,-307.53853544,0.00029545,7]
[328203724,1717056653820,-172.06734419,0.00029545,7]
[328203725,1717056653829,-500.0,0.00029545,7]
[328203726,1717056653838,-500.0,0.00029545,7]
[328203727,1717056653847,-500.0,0.00029545,7]
[328203728,1717056653856,-190.79365582,0.00029545,7]
[328203729,1717056654135,-512.94605222,0.00028747,2]
[328203730,1717056654144,-263.37325152,0.00028995,2]
[328203731,1717056654153,-223.68069626,0.00028997,7]
[328203732,1717056654165,-276.31930374,0.00028997,7]
[328203733,1717056654174,-500.0,0.00029271,7]
[328203734,1717056654185,-309.20634418,0.00029545,7]
[328203735,1717056654194,-500.0,0.00029545,7]
[328203736,1717056654204,-272.24935207,0.00029545,7]
[328203737,1717056654215,-227.75064793,0.00029545,7]
[328203738,1717056654224,-144.84935207,0.00029545,7]
[328203739,1717056654240,-404.9963767,0.00029545,7]
[328203740,1717056654250,-500.0,0.00029545,7]
[328203741,1717056654259,-443.67880293,0.00029545,7]
[328203742,1717056654270,-56.32119707,0.00029545,7]
[328203743,1717056654280,-500.0,0.00029545,7]
[328203744,1717056654289,-122.40685293,0.00029545,7]
[328203745,1717056654300,-587.06314707,0.00029545,7]
[328203746,1717056654311,-295.97285293,0.00029545,7]
[328203747,1717056654396,-500.0,0.00028997,7]
[328203748,1717056654407,-204.02714707,0.00029545,7]
[328203749,1717056654416,-500.0,0.00029545,7]
[328203750,1717056654426,-100.66454746,0.00029545,7]
[328203751,1717056654448,-399.33545254,0.00029545,7]
[328203752,1717056654458,-401.70184837,0.00029545,7]
[328203753,1717056654469,-98.29815163,0.00029545,7]
[328203754,1717056654478,-690.45,0.00029545,7]
[328203755,1717056654487,-319.90203868,0.00029545,7]
[328203776,1717057832113,-263.37325152,0.00017259,2]
[328203777,1717057832122,-1000.0,0.00021031,2]
[328203778,1717057832132,-165.29677628,0.000214,2]
[328203779,1717057832141,-1050.0,0.000215,2]
[328203780,1717057832150,-1125.89260097,0.000215,2]
[328203781,1717057832159,-1100.0,0.000235,2]
[328203782,1717057832169,-150.99,0.00025252,2]
[328203783,1717057832179,-343.58,0.00025252,2]
[328203784,1717057832188,-1150.0,0.000255,2]
[328203785,1717057832197,-3053.6,0.00026859,2]
[328203786,1717057832206,-282.31,0.0002689,2]
[328203787,1717057832216,-327.57,0.00027059,2]
[328203788,1717057832225,-250.0,0.00027078,2]
[328203789,1717057832234,-250.0,0.00027102,2]
[328203790,1717057832243,-631.73,0.00027168,2]
[328203791,1717057832252,-65.76050214,0.00027516,2]
[328203792,1717057832264,-277.81949786,0.00027516,2]
[328203793,1717057832273,-8.54019078,0.0002753,2]
[328203794,1717057832288,-393.95,0.0002753,2]
[328203795,1717057832299,-597.50980922,0.0002753,2]
[328203796,1717057832309,-150.21868936,0.00028,2]
[328203797,1717057832318,-315.37356774,0.00028066,7]
[328203798,1717057832328,-531.0,0.000281,3]
[328203799,1717057832337,-1000.0,0.00028544,2]
[328203800,1717057832346,-1500.0,0.00028737,2]
[328203801,1717057832354,-1000.0,0.00028895,2]
[328203802,1717057832364,-411.4488,0.00028896,2]
[328203803,1717057832373,-467.24261115,0.00028896,2]
[328203804,1717057832382,-349.5814424,0.00028896,2]
[328203805,1717057832401,-423.8,0.00028896,2]
[328203806,1717057832412,-673.1725,0.00028896,2]
[328203807,1717057832423,-450.0,0.00028896,2]
[328203808,1717057832441,-1382.9375965,0.00028896,2]
[328203809,1717057832451,-5353.093606,0.00028896,2]
[328203815,1717057832702,-678.1775,0.00028896,2]
[328203823,1717057838898,-8843.29847038,0.00028896,2]
[328203824,1717057838909,-1069.7892,0.00028897,2]
[328203825,1717057838919,-16452.1842,0.00028897,2]
[328203826,1717057838928,-1000.0,0.00028897,2]
[328203827,1717057838938,-161.2433,0.00028897,2]
[328203828,1717057838947,-281.71,0.00028897,2]
[328203830,1717057838957,-4516.3466,0.00028897,2]
[328203832,1717057838966,-1015.71026214,0.00028897,2]
[328203833,1717057838975,-200.0,0.000289,10]
[328203835,1717057838985,-150.0,0.00028952,2]
[328203837,1717057838994,-155.0,0.00028952,2]
[328203839,1717057839004,-155.60097303,0.00028952,4]
[328203841,1717057839014,-857.95142585,0.00028952,2]
[328203844,1717057839024,-2608.07457883,0.00028954,2]
[328203846,1717057839034,-1500.0,0.00028983,2]
[328203848,1717057839043,-1359.91631518,0.00028995,2]
[328203850,1717057839052,-207.79137545,0.00028995,2]
[328203852,1717057839061,-500.0,0.00028995,7]
[328203854,1717057839071,-500.0,0.00028995,7]
[328203856,1717057839081,-500.0,0.00028995,7]
[328203858,1717057839092,-500.0,0.00028995,7]
[328203860,1717057839102,-500.0,0.00028995,7]
[328203862,1717057839112,-933.39,0.00028995,7]
[328203864,1717057839122,-514.22,0.00028995,7]
[328203866,1717057839131,-500.0,0.00028995,7]
[328203868,1717057839142,-500.0,0.00028995,7]
[328203870,1717057839152,-500.0,0.00028995,7]
[328203872,1717057839162,-500.0,0.00028995,7]
[328203874,1717057839172,-500.0,0.00028995,7]
[328203876,1717057839184,-500.0,0.00028995,7]
[328203878,1717057839193,-500.0,0.00028995,7]
[328203880,1717057839203,-500.0,0.00028995,7]
[328203882,1717057839213,-500.0,0.00028995,7]